bitfinex-derivatives/quotes_SOLF0:USTF0_20250224
["timestamp","ask_amount","ask_price","bid_price","bid_amount"]
[1740428347422,0.04867766,151.57,151.54,0.04299856]
[1740428347626,0.04867766,151.57,151.51,0.04238991]
[1740428347827,0.04867766,151.57,151.43,7.7382]
[1740428347828,0.04867766,151.57,151.48,0.04238991]
[1740428348023,6.6023,151.49,151.42,6.6052]
[1740428348329,11.86,151.48,151.45,0.04238991]
[1740428348628,11.86,151.47,151.46,0.04238991]
[1740428348828,11.86,151.47,151.45,0.04973104]
[1740428349624,18.4635,151.47,151.45,0.04973104]
[1740428351127,6.6041,151.45,151.36,3.9108]
[1740428351325,6.6041,151.45,151.4,0.04238991]
[1740428351626,6.6041,151.45,151.36,3.9108]
[1740428351627,6.6041,151.45,151.42,0.04238991]
[1740428351827,6.6041,151.45,151.36,3.9108]
[1740428352031,6.6041,151.45,151.42,0.04238991]
[1740428352525,0.04519879,151.45,151.42,0.04818309]
[1740428352730,0.04519879,151.45,151.44,0.04238991]
[1740428353131,0.04519879,151.45,151.42,0.04818309]
[1740428353326,0.04519879,151.45,151.43,0.04238991]
[1740428353642,0.04519879,151.45,151.42,0.04818309]
[1740428353826,0.04519879,151.45,151.43,0.04238991]
[1740428354223,0.04519879,151.45,151.42,0.04818309]
[1740428354425,0.04519879,151.45,151.44,0.04238991]
[1740428354635,6.6047,151.44,151.42,0.04818309]
[1740428355228,6.6044,151.44,151.42,0.04818309]
[1740428355728,0.04519879,151.45,151.42,0.04818309]
[1740428355929,6.6048,151.43,151.42,0.04818309]
[1740428356129,0.04519879,151.45,151.32,3.9652]
[1740428356331,6.6062,151.4,151.39,0.04238991]
[1740428356729,6.6062,151.4,151.34,6.6087]
[1740428356933,11.86,151.39,151.36,0.04238991]
[1740428357134,11.86,151.39,151.34,0.04238991]
[1740428357333,7.8273,151.38,151.36,0.04935803]
[1740428357732,6.6075,151.37,151.36,0.04935803]
[1740428358039,11.90361567,151.39,151.37,0.04238991]
[1740428358333,11.90361567,151.39,151.36,0.04935803]
[1740428358334,11.90361567,151.39,151.38,0.04238991]
[1740428359837,18.51021567,151.39,151.38,0.04238991]
[1740428360338,11.90361567,151.39,151.38,0.04238991]
[1740428360832,0.04361567,151.39,151.38,0.04238991]
[1740428361039,11.86,151.42,151.38,0.04238991]
[1740428361238,11.86,151.42,151.29,195.126]
[1740428361437,11.86,151.42,151.41,0.04238991]
[1740428362329,194.0,151.62,151.41,0.04238991]
[1740428362535,23.6748,151.54,151.48,0.04238991]
[1740428362937,19.76,151.53,151.49,0.04238991]
[1740428363534,11.86,151.52,151.5,0.04238991]
[1740428363733,0.04580153,151.53,151.5,0.04238991]
[1740428363939,11.86,151.52,151.51,0.04238991]
[1740428364638,11.86,151.52,151.49,0.04807825]
[1740428364936,11.86,151.52,151.51,0.04238991]
[1740428365337,11.86,151.52,151.49,0.04807825]
[1740428365538,11.86,151.52,151.51,0.04238991]
[1740428365940,11.86,151.52,151.49,0.04807825]
[1740428366139,19.76,151.51,151.49,0.04807825]
[1740428366337,11.86,151.52,151.49,0.04807825]
[1740428367040,31.62,151.52,151.49,0.04807825]
[1740428367241,31.62,151.52,151.33,4.0179]
[1740428367242,19.76,151.49,151.33,4.0179]
[1740428367540,19.76,151.49,151.43,0.04238991]
[1740428367743,6.6036,151.46,151.42,0.04238991]
[1740428367940,19.76,151.49,151.42,0.04238991]
[1740428368142,19.76,151.48,151.43,0.04238991]
[1740428368437,0.04174961,151.47,151.44,0.04995003]
[1740428368742,11.86,151.52,151.48,0.04238991]
[1740428368936,11.86,151.52,151.33,4.0179]
[1740428368937,11.86,151.52,151.49,0.04238991]
[1740428369142,11.90897207,151.52,151.49,0.04238991]
[1740428369344,11.90897207,151.52,151.49,0.08965237]
[1740428369543,11.90897207,151.52,151.49,0.04726246]
[1740428370434,11.86,151.51,151.49,0.04726246]
[1740428370741,11.86,151.51,151.49,0.08965237]
[1740428370934,11.86,151.51,151.5,0.04238991]
[1740428371342,0.04897207,151.52,151.5,0.04238991]
[1740428371540,0.04897207,151.52,151.51,0.04238991]
[1740428374941,0.04897207,151.52,151.49,0.04726246]
[1740428375137,0.04897207,151.52,151.5,0.04238991]
[1740428375847,0.04897207,151.52,151.51,0.04238991]
[1740428376347,0.04897207,151.52,151.49,0.04726246]
[1740428376646,0.04897207,151.52,151.51,0.04238991]
[1740428377145,0.04897207,151.52,151.37,4.0619]
[1740428377339,51.45,151.53,151.42,0.04238991]
[1740428377537,51.45,151.53,151.38,0.04238991]
[1740428377736,51.45,151.53,151.33,106.94131949]
[1740428377737,39.59,151.51,151.33,106.94131949]
[1740428377941,39.59,151.49,151.33,106.94131949]
[1740428378139,39.59,151.47,151.34,59.99631893]
[1740428378337,0.04990447,151.43,151.34,47.55433147]
[1740428378542,6.6083,151.35,151.34,47.55433147]
[1740428378741,6.6083,151.35,151.34,23.84193147]
[1740428378949,19.8,151.41,151.34,23.84193147]
[1740428379150,19.8,151.38,151.34,23.84193147]
[1740428379348,19.8,151.38,151.34,3.12813147]
[1740428379551,19.84965673,151.38,151.34,3.17652607]
[1740428379749,19.8,151.35,151.34,3.17652607]
[1740428380540,19.8,151.35,151.33,96.11784556]
[1740428380745,31.66,151.34,151.33,96.11784556]
[1740428381655,11.86,151.34,151.33,96.11784556]
[1740428382257,11.86,151.34,151.18,4.0248]
[1740428382448,1.32161501,151.33,151.23,0.04238991]
[1740428382652,0.04764799,151.3,151.23,0.04238991]
[1740428382948,0.04764799,151.3,151.13,11.5575]
[1740428383144,19.8,151.29,151.19,0.04238991]
[1740428383348,0.04506245,151.23,151.18,0.04238991]
[1740428383554,11.86,151.22,151.18,0.04238991]
[1740428384553,31.66,151.22,151.15,6.617]
[1740428384745,31.66,151.22,151.18,0.04238991]
[1740428385056,601.17909761,151.21,151.17,0.04238991]
[1740428385251,601.17909761,151.21,151.18,0.04238991]
[1740428385452,601.17909761,151.21,151.19,0.04238991]
[1740428385754,601.22905816,151.21,151.19,0.04238991]
[1740428387457,601.22905816,151.21,151.16,6.6166]
[1740428387659,601.22905816,151.21,151.19,0.04238991]
[1740428387859,0.04996055,151.21,151.19,0.04238991]
[1740428388957,0.04996055,151.21,151.15,6.617]
[1740428389262,0.04996055,151.21,151.18,0.04238991]
[1740428389462,27.18783089,151.21,151.18,0.04238991]
[1740428389658,27.18783089,151.21,151.19,0.04238991]
[1740428390263,39.06783089,151.21,151.2,0.04238991]
[1740428390964,39.06783089,151.21,151.03,191.0]
[1740428391157,19.8,151.2,151.04,12.069]
[1740428391358,0.04618696,151.14,151.04,12.069]
[1740428391558,5.69258696,151.14,151.04,12.069]
[1740428391860,39.01787034,151.21,151.04,12.069]
[1740428392565,39.01787034,151.21,151.04,43.739]
[1740428392763,20.352051,151.21,151.11,0.04701638]
[1740428392959,11.88,151.21,151.04,43.739]
[1740428393164,11.88,151.27,151.04,43.739]
[1740428394162,0.05056552,151.17,151.14,0.04937353]
[1740428394363,11.88,151.27,151.04,43.739]
[1740428395155,3.9706,151.31,151.04,43.739]
[1740428395357,11.88,151.3,151.04,45.06315254]
[1740428395554,11.88,151.36,151.16,0.04325954]
[1740428395755,11.88,151.36,151.17,184.84]
[1740428396762,0.04896527,151.28,151.25,0.05035235]
[1740428396958,11.88,151.36,151.17,172.96]
[1740428398163,0.04602844,151.28,151.25,0.04313146]
[1740428398563,31.68,151.36,151.18,3.8168]
[1740428398765,0.04747951,151.28,151.25,0.04982291]
[1740428398964,31.68,151.38,151.18,3.8168]
[1740428399270,3.8556,151.37,151.18,3.8168]
[1740428399971,0.04217439,151.29,151.26,0.04472547]
[1740428400163,23.6556,151.37,151.18,3.8168]
[1740428400369,0.04968343,151.29,151.26,0.05059879]
[1740428400669,11.88,151.36,151.18,194.8168]
[1740428401666,19.8,151.43,151.18,194.8168]
[1740428401870,11.88,151.42,151.25,0.05077855]
[1740428402072,11.88,151.42,151.25,191.0]
[1740428402273,11.88,151.42,151.27,8.94968665]
[1740428402473,11.6714,151.54,151.28,7.8516]
[1740428402776,19.8,151.52,151.29,172.9]
[1740428403168,0.04348232,151.43,151.39,0.04338906]
[1740428403373,11.86,151.57,151.39,0.04338906]
[1740428403671,11.86,151.57,151.3,222.65]
[1740428403672,20.64178903,151.55,151.3,222.65]
[1740428403871,0.84178903,151.55,151.3,222.65]
[1740428404073,11.86,151.57,151.47,8.94968665]
[1740428404575,0.04316822,151.54,151.5,0.04662407]
[1740428405469,11.86,151.54,151.53,107.39623983]
[1740428406883,11.86,151.54,151.52,35.67370238]
[1740428407082,11.86,151.57,151.52,35.67370238]
[1740428408175,44.65394105,151.6,151.51,8.91842559]
[1740428408381,0.04858109,151.56,151.51,8.91842559]
[1740428408683,0.04858109,151.56,151.54,0.04460417]
[1740428409480,44.65394105,151.6,151.54,0.04460417]
[1740428410478,0.04621005,151.59,151.54,0.04460417]
[1740428412681,11.90621005,151.59,151.54,0.04460417]
[1740428413883,31.70621005,151.59,151.52,12.41939774]
[1740428414188,39.59,151.57,151.52,12.41939774]
[1740428414381,1.21242264,151.56,151.52,12.41939774]
[1740428414577,39.59,151.54,151.53,71.34740479]
[1740428414883,21.01242264,151.54,151.53,71.34740479]
[1740428415083,120.26295354,151.55,151.53,71.34740479]
[1740428415283,13.15978355,151.54,151.53,71.34740479]
[1740428415481,32.95978355,151.54,151.53,71.34740479]
[1740428415882,52.74978355,151.54,151.53,71.34740479]
[1740428416090,52.74978355,151.54,151.52,2.94969136]
[1740428416278,1.31987065,151.53,151.51,89.34593119]
[1740428416485,1.31987065,151.53,151.48,99.45546103]
[1740428416687,1.21314143,151.52,151.48,99.45546103]
[1740428416892,19.8,151.48,151.36,71.4739622]
[1740428417082,1.32039347,151.47,151.37,65.99008991]
[1740428417282,31.66,151.46,151.37,65.99008991]
[1740428417482,11.86,151.46,151.37,65.99008991]
[1740428417682,0.04362529,151.44,151.4,0.04500188]
[1740428418083,0.04362529,151.44,151.41,65.99008991]
[1740428418484,0.04362529,151.44,151.43,65.99008991]
[1740428418689,0.04362529,151.44,151.4,0.04500188]
[1740428419790,1.32074225,151.43,151.4,0.04500188]
[1740428420886,11.86,151.42,151.4,0.04500188]
[1740428421489,6.6057,151.41,151.4,0.04500188]
[1740428422793,11.86,151.42,151.4,66.03509179]
[1740428422985,11.86,151.42,151.41,65.99008991]
[1740428423186,34.26110843,151.53,151.41,363.76]
[1740428423390,34.26110843,151.53,151.52,65.99008991]
[1740428423794,34.26110843,151.54,151.52,65.99008991]
[1740428423988,28.04320843,151.54,151.53,65.99008991]
[1740428424193,107.39956265,151.56,151.53,65.99008991]
[1740428424397,107.39956265,151.56,151.55,65.99008991]
[1740428424598,107.44348458,151.56,151.55,65.99008991]
[1740428424793,104.41188458,151.56,151.55,65.99008991]
[1740428425295,148.85327832,151.57,151.54,0.04781557]
[1740428425495,104.42287832,151.57,151.54,191.04781557]
[1740428426198,75.03717832,151.57,151.56,6.5992]
[1740428426399,12.1,151.76,151.54,191.04781557]
[1740428426698,12.08,151.75,151.62,6.5963]
[1740428426899,12.08,151.76,151.54,191.0]
[1740428427095,12.08,151.76,151.53,172.7]
[1740428427289,26.9414928,151.8,151.53,192.49]
[1740428427696,0.037969,151.68,151.65,0.04248286]
[1740428428103,26.9414928,151.8,151.58,31.87]
[1740428428299,6.9e-05,151.68,151.65,0.04646289]
[1740428428694,26.9414928,151.8,151.71,6.5923]
[1740428428900,26.9414928,151.8,151.58,12.08]
[1740428429096,33.5302928,151.8,151.63,6.5958]
[1740428429292,12.08,151.83,151.63,6.5958]
[1740428429497,12.08,151.83,151.7,0.04766721]
[1740428429696,18.6679,151.83,151.68,6.5939]
[1740428430002,8.1882,151.89,151.75,0.04963809]
[1740428430197,12.08,151.88,151.73,6.5917]
[1740428430401,12.08,151.88,151.8,0.04663499]
[1740428430695,12.08,151.88,151.68,191.0]
[1740428430902,12.08,151.88,151.82,0.04270886]
[1740428431199,12.08,151.88,151.68,191.0]
[1740428431404,12.08,151.88,151.83,0.04230156]
[1740428431599,12.08,151.88,151.78,6.5895]
[1740428431800,12.08,151.88,151.84,0.04488097]
[1740428432805,12.06,151.89,151.84,0.04488097]
[1740428433098,6.5839,151.92,151.84,0.04488097]
[1740428433304,6.5831,151.93,151.84,0.04488097]
[1740428433501,13.24910307,151.92,151.84,0.04488097]
[1740428433698,12.04,151.92,151.87,0.04321983]
[1740428434202,1.20918867,151.91,151.87,0.04321983]
[1740428434401,12.04,151.92,151.87,0.04321983]
[1740428434905,18.6239,151.92,151.87,0.04321983]
[1740428435101,172.6,152.0,151.87,0.04321983]
[1740428435304,13.22901131,151.99,151.87,0.04321983]
[1740428435507,1.20901131,151.98,151.68,191.0]
[1740428435807,1.20901131,151.97,151.68,191.0]
[1740428436007,1.20901131,151.96,151.81,0.046339]
[1740428436206,12.02,151.99,151.81,0.046339]
[1740428436403,1.20917346,151.98,151.87,0.04922031]
[1740428436601,1.20917346,151.97,151.87,0.04922031]
[1740428436804,1.20917346,151.96,151.69,203.0]
[1740428437005,1.20917346,151.95,151.9,0.04873232]
[1740428437308,1.20917346,151.94,151.91,0.04396159]
[1740428437509,1.20917346,151.93,151.79,6.5892]
[1740428437709,6.5845,151.9,151.79,6.5892]
[1740428437904,18.5645,151.9,151.79,6.5892]
[1740428438809,0.04289825,151.86,151.83,0.04814904]
[1740428439705,0.04289825,151.86,151.69,203.0]
[1740428439706,244.0,151.85,151.64,17.36736334]
[1740428439906,8.85644297,151.84,151.64,191.0]
[1740428440104,1.20984297,151.83,151.64,191.0]
[1740428440304,6.5862,151.86,151.75,6.5908]
[1740428440709,7.6466,151.89,151.69,172.36]
[1740428440902,0.04729704,151.82,151.79,0.04576832]
[1740428441110,7.6466,151.89,151.69,363.36]
[1740428441307,0.04749112,151.82,151.79,0.04460998]
[1740428441507,7.6466,151.89,151.75,6.5906]
[1740428441806,0.04408098,151.82,151.79,0.04641301]
[1740428442004,1.20941551,151.88,151.69,363.36]
[1740428442005,12.2,151.88,151.69,363.36]
[1740428442309,0.04863775,151.82,151.79,0.04816093]
[1740428448012,6.5883,151.81,151.79,0.04816093]
[1740428448314,12.14,151.8,151.69,172.36]
[1740428448514,18.7288,151.8,151.72,6.5921]
[1740428448709,12.14,151.8,151.69,172.36]
[1740428449307,0.04568774,151.76,151.73,0.04849869]
[1740428449820,12.1,151.85,151.73,0.04849869]
[1740428450115,12.1,151.85,151.69,172.36]
[1740428450312,6.588,151.82,151.74,6.591]
[1740428450515,12.1,151.85,151.69,172.36]
[1740428450912,0.04891807,151.79,151.75,0.04819806]
[1740428451110,0.04891807,151.79,151.69,172.36]
[1740428451306,18.6866,151.85,151.75,0.0475607]
[1740428451509,18.6866,151.85,151.76,6.5902]
[1740428451711,0.04833489,151.82,151.78,0.04788395]
[1740428451909,12.1,151.85,151.78,6.63728395]
[1740428452107,0.05065804,151.82,151.78,0.04788395]
[1740428457612,0.05065804,151.82,151.8,6.5887]
[1740428457814,0.00695804,151.82,151.78,0.04788395]
[1740428458115,0.00695804,151.82,151.81,6.5883]
[1740428459416,0.00695804,151.82,151.81,57.72752222]
[1740428462021,7.9039,151.97,151.9,6.5841]
[1740428462218,7.9039,151.97,151.86,9.27466878]
[1740428462620,7.9039,151.97,151.91,6.584]
[1740428462820,7.9039,151.97,151.86,9.27466878]
[1740428463023,0.04286244,151.93,151.9,0.0441599]
[1740428463620,0.04286244,151.93,151.81,51.13922222]
[1740428463818,6.5857,151.87,151.81,51.13922222]
[1740428464022,12.06,151.87,151.81,51.13922222]
[1740428464320,9.43817853,151.86,151.81,228.26813767]
[1740428464515,6.5879,151.82,151.81,209.63723767]
[1740428464817,6.5879,151.82,151.81,136.06679926]
[1740428465019,6.5879,151.82,151.81,129.89219926]
[1740428465218,7.79789451,151.82,151.81,100.32219926]
[1740428465624,27.59789451,151.82,151.81,88.86639926]
[1740428465823,1.20999451,151.82,151.81,88.86639926]
[1740428466324,1.21017281,151.82,151.81,88.86639926]
[1740428466524,1.21017281,151.82,151.8,0.04668026]
[1740428466716,1.21017281,151.81,151.8,0.04668026]
[1740428469424,19.8,151.82,151.8,0.04668026]
[1740428469727,1.21030496,151.81,151.8,0.04668026]
[1740428470028,215.01030496,151.81,151.8,0.04668026]
[1740428470223,216.32774122,151.81,151.8,0.04668026]
[1740428470528,2.52774122,151.81,151.6,17.53700788]
[1740428470729,1.21030496,151.8,151.73,0.04668026]
[1740428471028,1.21030496,151.79,151.7,0.04668026]
[1740428471223,13.29030496,151.78,151.7,0.04668026]
[1740428471424,1.21030496,151.77,151.7,0.04668026]
[1740428471624,12.08,151.78,151.7,0.04668026]
[1740428471625,1.25572888,151.76,151.72,0.04993206]
[1740428471821,0.04542392,151.76,151.72,0.04993206]
[1740428472429,0.04542392,151.76,151.72,0.02513206]
[1740428472723,1.21057286,151.75,151.72,0.02513206]
[1740428472928,0.04542392,151.76,151.72,0.02513206]
[1740428475129,19.8,151.74,151.72,0.02513206]
[1740428475329,216.32862865,151.73,151.72,0.02513206]
[1740428475732,196.52862865,151.73,151.72,0.02513206]
[1740428476024,1.31813089,151.73,151.72,0.02513206]
[1740428476431,0.04542392,151.76,151.72,0.02513206]
[1740428476730,0.04542392,151.76,151.73,6.63808026]
[1740428478029,0.04542392,151.76,151.73,0.04668026]
[1740428478428,0.04542392,151.76,151.72,6.61723206]
[1740428478631,0.04542392,151.76,151.73,0.04668026]
[1740428478826,0.04542392,151.76,151.72,0.02513206]
[1740428479031,19.84542392,151.76,151.72,0.02513206]
[1740428479227,0.04542392,151.76,151.72,0.02513206]
[1740428480834,0.04542392,151.76,151.73,0.04668026]
[1740428481030,0.04542392,151.76,151.72,0.02513206]
[1740428481230,6.63622392,151.76,151.72,0.02513206]
[1740428481831,6.5912,151.75,151.72,0.02513206]
[1740428482326,0.04542392,151.76,151.72,0.02513206]
[1740428483335,1.36329424,151.76,151.72,0.02513206]
[1740428483534,26.3918,151.73,151.72,0.02513206]
[1740428483935,19.8,151.73,151.72,0.02513206]
[1740428484424,26.3918,151.73,151.72,3.206e-05]
[1740428484925,198.7918,151.73,151.72,3.206e-05]
[1740428485132,172.4,151.73,151.72,3.206e-05]
[1740428485331,184.42,151.73,151.72,3.206e-05]
[1740428485935,192.2,151.73,151.72,3.206e-05]
[1740428486129,204.2,151.73,151.72,3.206e-05]
[1740428486329,210.7918,151.73,151.72,3.206e-05]
[1740428486731,172.4,151.73,151.72,3.206e-05]
[1740428486932,184.4,151.73,151.72,3.206e-05]
[1740428487524,190.9918,151.73,151.72,3.206e-05]
[1740428489728,210.7918,151.73,151.72,3.206e-05]
[1740428489934,212.10993089,151.73,151.72,3.206e-05]
[1740428491538,192.30993089,151.73,151.72,3.206e-05]
[1740428492237,7.90993089,151.73,151.72,3.206e-05]
[1740428492533,0.04542392,151.76,151.72,0.04671232]
[1740428492734,12.10542392,151.76,151.73,0.04668026]
[1740428492934,12.10542392,151.76,151.74,0.04668026]
[1740428494039,12.10542392,151.76,151.72,3.206e-05]
[1740428494240,12.10542392,151.76,151.73,0.04668026]
[1740428494542,6.5913,151.75,151.73,0.04668026]
[1740428494838,31.90542392,151.76,151.72,3.206e-05]
[1740428495233,6.5918,151.73,151.72,3.206e-05]
[1740428496542,6.591,151.75,151.72,0.04671232]
[1740428496740,6.591,151.75,151.73,0.04668026]
[1740428496937,12.10542392,151.76,151.72,3.206e-05]
[1740428497136,6.5909,151.75,151.73,0.04668026]
[1740428497340,12.10542392,151.76,151.73,0.04668026]
[1740428497641,6.5914,151.74,151.72,3.206e-05]
[1740428497830,12.10542392,151.76,151.73,0.04668026]
[1740428498034,12.10542392,151.76,151.72,3.206e-05]
[1740428498239,6.5916,151.74,151.73,0.04668026]
[1740428501041,6.5918,151.73,151.72,3.206e-05]
[1740428501643,6.5918,151.73,151.72,0.04671232]
[1740428504333,6.5918,151.73,151.72,3.206e-05]
[1740428504849,26.3918,151.73,151.72,3.206e-05]
[1740428507054,6.5918,151.73,151.72,3.206e-05]
[1740428507255,18.4918,151.73,151.72,3.206e-05]
[1740428511160,38.2918,151.73,151.72,3.206e-05]
[1740428511456,18.4918,151.73,151.72,3.206e-05]
[1740428515951,6.5918,151.73,151.72,3.206e-05]
[1740428516150,18.4318,151.73,151.72,3.206e-05]
[1740428517963,38.2318,151.73,151.72,3.206e-05]
[1740428518356,39.54993089,151.73,151.72,3.206e-05]
[1740428518763,6.597,151.61,151.6,72.41235052]
[1740428518959,6.597,151.61,151.6,43.18825052]
[1740428518960,31.64,151.61,151.6,43.18825052]
[1740428519261,31.64,151.61,151.6,43.14065052]
[1740428520265,31.64,151.61,151.6,29.14065052]
[1740428520456,38.237,151.61,151.6,29.14065052]
[1740428520655,38.237,151.61,151.6,15.14065052]
[1740428520856,31.64,151.61,151.6,15.14065052]
[1740428521265,11.84,151.61,151.6,15.14065052]
[1740428521466,31.64,151.61,151.6,15.14065052]
[1740428521968,38.237,151.61,151.6,15.14065052]
[1740428522169,31.64,151.61,151.59,0.04855082]
[1740428522365,1.31926121,151.6,151.59,0.04855082]
[1740428523459,13.15926121,151.6,151.59,0.04855082]
[1740428524066,32.95926121,151.6,151.59,0.04855082]
[1740428524359,39.55666121,151.6,151.59,0.04855082]
[1740428524560,32.95926121,151.6,151.59,0.04855082]
[1740428524956,39.55666121,151.6,151.59,0.04855082]
[1740428526173,32.95926121,151.6,151.59,0.04855082]
[1740428526464,13.15926121,151.6,151.59,0.04855082]
[1740428527463,13.15926121,151.6,151.59,0.09523108]
[1740428528369,11.86,151.64,151.59,0.09523108]
[1740428528570,11.86,151.64,151.59,0.04855082]
[1740428528768,11.86,151.64,151.63,0.04668026]
[1740428529163,5.6387,151.64,151.63,6.64278026]
[1740428529365,11.86,151.67,151.63,0.04668026]
[1740428529569,11.86,151.67,151.59,0.04855082]
[1740428529570,0.0488097,151.65,151.59,0.04855082]
[1740428529774,0.0488097,151.65,151.61,0.04279216]
[1740428529964,194.60064524,151.73,151.64,0.04668026]
[1740428530171,11.86,151.69,151.67,0.04668026]
[1740428530363,0.04685533,151.68,151.61,6.5966]
[1740428530567,0.04685533,151.68,151.66,0.04838942]
[1740428530768,11.86,151.69,151.67,0.04668026]
[1740428530975,11.86,151.69,151.68,0.04668026]
[1740428531676,5.6406,151.69,151.68,0.04668026]
[1740428531878,0.04204214,151.7,151.68,0.04668026]
[1740428532176,11.86,151.71,151.52,191.0]
[1740428532365,11.90555202,151.71,151.7,0.04668026]
[1740428532569,11.86,151.71,151.7,0.04668026]
[1740428532968,11.90316217,151.72,151.7,0.04668026]
[1740428533171,11.90316217,151.72,151.71,0.04668026]
[1740428534074,11.90316217,151.72,151.69,0.04713537]
[1740428534275,31.70316217,151.72,151.69,0.04713537]
[1740428534771,11.90316217,151.72,151.7,0.04668026]
[1740428534970,11.90316217,151.72,151.71,0.04668026]
[1740428535372,11.90316217,151.72,151.69,0.04713537]
[1740428535573,11.90316217,151.72,151.71,0.04668026]
[1740428536672,0.04316217,151.72,151.71,0.04668026]
[1740428536878,11.84,151.76,151.71,0.04668026]
[1740428537076,11.84,151.76,151.56,383.29]
[1740428537275,6.5891,151.8,151.75,0.04668026]
[1740428537470,11.84,151.79,151.77,0.04668026]
[1740428537877,11.84,151.78,151.69,14.3716]
[1740428538071,11.84,151.78,151.77,0.04668026]
[1740428538276,0.04672687,151.75,151.69,14.3716]
[1740428538478,11.84,151.78,151.77,0.04668026]
[1740428538678,11.84,151.78,151.76,0.04668026]
[1740428538874,31.64,151.78,151.69,3.8219]
[1740428539072,31.64,151.78,151.58,3.9566]
[1740428539278,19.8,151.76,151.67,0.04668026]
[1740428539476,213.8,151.76,151.58,3.9566]
[1740428539679,19.8,151.74,151.64,0.04668026]
[1740428539880,6.5948,151.67,151.64,0.04668026]
[1740428540081,11.84,151.66,151.64,0.04668026]
[1740428540479,18.4351,151.66,151.64,0.09612538]
[1740428540780,11.84,151.66,151.65,0.04668026]
[1740428540980,11.84,151.66,151.64,0.09612538]
[1740428541676,18.4349,151.66,151.64,0.09612538]
[1740428541871,18.4349,151.66,151.65,0.04668026]
[1740428542076,11.84,151.66,151.64,0.09612538]
[1740428542369,6.5953,151.65,151.64,0.04944512]
[1740428543677,19.8,151.65,151.55,4.0086]
[1740428543987,19.8,151.63,151.48,7.7714]
[1740428544176,19.8,151.61,151.52,0.04668026]
[1740428544481,192.3,151.61,151.53,0.04668026]
[1740428544679,6.6,151.55,151.53,0.04668026]
[1740428544871,11.84,151.54,151.53,0.04668026]
[1740428545279,18.4401,151.54,151.52,0.05017265]
[1740428545483,18.4401,151.54,151.53,0.04668026]
[1740428545781,11.84,151.54,151.53,0.04668026]
[1740428545983,18.4401,151.54,151.52,0.05017265]
[1740428546182,11.84,151.54,151.53,0.04668026]
[1740428546575,11.84,151.54,151.52,0.05017265]
[1740428546784,11.84,151.54,151.53,0.04668026]
[1740428547186,11.84,151.54,151.52,0.05017265]
[1740428547381,11.84,151.54,151.53,0.04668026]
[1740428547579,11.84,151.54,151.52,0.05017265]
[1740428547781,11.84,151.54,151.53,0.04668026]
[1740428548679,5.6169,151.54,151.53,0.04668026]
[1740428549688,0.04858347,151.55,151.53,0.04668026]
[1740428549889,11.86,151.58,151.54,0.04668026]
[1740428550086,6.5982,151.59,151.57,0.04668026]
[1740428550282,11.86,151.58,151.57,0.04668026]
[1740428550587,6.6005,151.53,151.48,7.7714]
[1740428551083,6.6005,151.53,151.49,0.04269873]
[1740428551084,0.04685436,151.52,151.49,0.04269873]
[1740428551685,6.64785436,151.52,151.49,0.04269873]
[1740428552594,0.04685436,151.52,151.49,0.04269873]
[1740428553182,6.6018,151.5,151.49,0.04269873]
[1740428553485,18.4618,151.5,151.49,0.04269873]
[1740428556992,6.64785436,151.52,151.49,0.04269873]
[1740428557195,18.50785436,151.52,151.49,0.04269873]
[1740428557896,0.04685436,151.52,151.49,0.04269873]
[1740428558093,19.8,151.59,151.49,0.04269873]
[1740428558291,11.86,151.58,151.45,4.108]
[1740428559295,0.04533173,151.53,151.5,0.04519282]
[1740428561298,11.86,151.57,151.5,6.64659282]
[1740428561596,11.86,151.57,151.51,3.8143]
[1740428561796,6.5993,151.56,151.51,3.8143]
[1740428562000,11.86,151.57,151.51,3.8143]
[1740428562588,11.86,151.57,151.52,0.04467719]
[1740428562791,172.5,151.61,151.52,0.04467719]
[1740428562996,11.86,151.6,151.52,0.04467719]
[1740428563195,172.5,151.61,151.52,0.04467719]
[1740428563389,11.86,151.6,151.52,0.04467719]
[1740428565196,6.5997,151.55,151.52,0.04467719]
[1740428565397,31.66,151.6,151.52,0.04467719]
[1740428566600,6.598,151.59,151.53,6.6004]
[1740428566797,6.598,151.59,151.53,10.3589]